[Event "Titled Tuesday Blitz December 06 Late 2022"]
[White "Papayan, Oleg"]
[Black "Barria Zuniga, Daniel"]
[WhiteFideId "4193911"]
[BlackFideId "3400816"]
[WhiteElo "2153"]
[BlackElo "2414"]
[Result "0-1"]
[Round "07"]
[TimeControl "180+1"]
[Date "2022.12.07"]
[WhiteClock "0:00:14"]
[BlackClock "0:00:08"]

1. e4 {[%clk 0:02:57]}  c5 {[%clk 0:01:27]} 2. Nf3 {[%clk 0:02:55]}  Nc6 {[%clk 0:01:26]} 3. Bb5 {[%clk 0:02:55]}  a6 {[%clk 0:01:22]} 4. Bxc6 {[%clk 0:02:55]}  bxc6 {[%clk 0:01:23]} 5. O-O {[%clk 0:02:53]}  e6 {[%clk 0:01:23]} 6. d3 {[%clk 0:02:44]}  Ne7 {[%clk 0:01:21]} 7. Nbd2 {[%clk 0:02:44]}  Ng6 {[%clk 0:01:20]} 8. e5 {[%clk 0:02:33]}  Be7 {[%clk 0:01:15]} 9. Qe2 {[%clk 0:02:30]}  O-O {[%clk 0:01:15]} 10. Nc4 {[%clk 0:02:29]}  f6 {[%clk 0:01:07]} 11. b3 {[%clk 0:01:51]}  fxe5 {[%clk 0:01:01]} 12. Nfxe5 {[%clk 0:01:49]}  Nxe5 {[%clk 0:00:59]} 13. Nxe5 {[%clk 0:01:48]}  Qc7 {[%clk 0:00:59]} 14. Bb2 {[%clk 0:01:42]}  d6 {[%clk 0:00:56]} 15. Nc4 {[%clk 0:01:38]}  e5 {[%clk 0:00:55]} 16. Rae1 {[%clk 0:01:25]}  Bf6 {[%clk 0:00:47]} 17. f4 {[%clk 0:01:17]}  exf4 {[%clk 0:00:37]} 18. Bxf6 {[%clk 0:01:18]}  Rxf6 {[%clk 0:00:30]} 19. Qe8+ {[%clk 0:01:19]}  Rf8 {[%clk 0:00:30]} 20. Rxf4 {[%clk 0:01:19]}  Bf5 {[%clk 0:00:10]} 21. Qe7 {[%clk 0:01:01]}  Qxe7 {[%clk 0:00:10]} 22. Rxe7 {[%clk 0:01:01]}  d5 {[%clk 0:00:11]} 23. Ne5 {[%clk 0:00:47]}  Rf6 {[%clk 0:00:06]} 24. g4 {[%clk 0:00:38]}  Bg6 {[%clk 0:00:06]} 25. Rxf6 {[%clk 0:00:35]}  gxf6 {[%clk 0:00:07]} 26. Nxc6 {[%clk 0:00:32]}  Kf8 {[%clk 0:00:05]} 27. Rd7 {[%clk 0:00:27]}  c4 {[%clk 0:00:05]} 28. Rxd5 {[%clk 0:00:25]}  cxd3 {[%clk 0:00:05]} 29. cxd3 {[%clk 0:00:25]}  Rc8 {[%clk 0:00:05]} 30. Nb4 {[%clk 0:00:18]}  Rc1+ {[%clk 0:00:04]} 31. Kf2 {[%clk 0:00:18]}  Rb1 {[%clk 0:00:04]} 32. h4 {[%clk 0:00:08]}  Ke7 {[%clk 0:00:03]} 33. h5 {[%clk 0:00:08]}  Bf7 {[%clk 0:00:02]} 34. Ra5 {[%clk 0:00:07]}  Be6 {[%clk 0:00:02]} 35. g5 {[%clk 0:00:04]}  fxg5 {[%clk 0:00:02]} 36. Rxg5 {[%clk 0:00:04]}  Kf6 {[%clk 0:00:03]} 37. Ra5 {[%clk 0:00:04]}  Bg4 {[%clk 0:00:03]} 38. Rxa6+ {[%clk 0:00:04]}  Kg5 {[%clk 0:00:03]} 39. Ra5+ {[%clk 0:00:04]}  Kh4 {[%clk 0:00:02]} 40. h6 {[%clk 0:00:02]}  Rb2+ {[%clk 0:00:02]} 41. Ke3 {[%clk 0:00:03]}  Re2+ {[%clk 0:00:02]} 42. Kd4 {[%clk 0:00:03]}  Re6 {[%clk 0:00:03]} 43. Rd5 {[%clk 0:00:03]}  Rxh6 {[%clk 0:00:03]} 44. a4 {[%clk 0:00:03]}  Rb6 {[%clk 0:00:03]} 45. Rb5 {[%clk 0:00:03]}  Rd6+ {[%clk 0:00:02]} 46. Kc4 {[%clk 0:00:03]}  Rd8 {[%clk 0:00:03]} 47. a5 {[%clk 0:00:03]}  Bf3 {[%clk 0:00:04]} 48. a6 {[%clk 0:00:03]}  Kg3 {[%clk 0:00:04]} 49. a7 {[%clk 0:00:03]}  Ra8 {[%clk 0:00:03]} 50. Ra5 {[%clk 0:00:03]}  h5 {[%clk 0:00:03]} 51. Kc5 {[%clk 0:00:03]}  h4 {[%clk 0:00:03]} 52. Nd5 {[%clk 0:00:02]}  Bxd5 {[%clk 0:00:03]} 53. Kxd5 {[%clk 0:00:03]}  h3 {[%clk 0:00:04]} 54. Kc6 {[%clk 0:00:01]}  h2 {[%clk 0:00:04]} 55. Rh5 {[%clk 0:00:02]}  Rxa7 {[%clk 0:00:03]} 56. Kb6 {[%clk 0:00:02]}  Ra2 {[%clk 0:00:04]} 57. b4 {[%clk 0:00:02]}  Rb2 {[%clk 0:00:03]} 58. b5 {[%clk 0:00:02]}  Kg2 {[%clk 0:00:04]} 59. d4 {[%clk 0:00:03]}  Rb3 {[%clk 0:00:04]} 60. d5 {[%clk 0:00:03]}  Rh3 {[%clk 0:00:05]} 61. Rxh3 {[%clk 0:00:02]}  Kxh3 {[%clk 0:00:05]} 62. d6 {[%clk 0:00:03]}  h1=Q {[%clk 0:00:06]} 63. d7 {[%clk 0:00:04]}  Qa8 {[%clk 0:00:06]} 64. Kc7 {[%clk 0:00:04]}  Qa7+ {[%clk 0:00:07]} 65. Kc6 {[%clk 0:00:05]}  Qb8 {[%clk 0:00:07]} 66. b6 {[%clk 0:00:06]}  Kg4 {[%clk 0:00:06]} 67. b7 {[%clk 0:00:06]}  Kf5 {[%clk 0:00:05]} 68. Kb6 {[%clk 0:00:07]}  Ke6 {[%clk 0:00:05]} 69. d8=Q {[%clk 0:00:08]}  Qxd8+ {[%clk 0:00:05]} 70. Ka7 {[%clk 0:00:09]}  Qa5+ {[%clk 0:00:05]} 71. Kb8 {[%clk 0:00:10]}  Kd6 {[%clk 0:00:04]} 72. Kc8 {[%clk 0:00:10]}  Qc5+ {[%clk 0:00:04]} 73. Kd8 {[%clk 0:00:10]}  Qb6+ {[%clk 0:00:03]} 74. Ke8 {[%clk 0:00:11]}  Qxb7 {[%clk 0:00:03]} 75. Kd8 {[%clk 0:00:12]}  Qc7+ {[%clk 0:00:04]} 76. Ke8 {[%clk 0:00:12]}  Qd7+ {[%clk 0:00:05]} 77. Kf8 {[%clk 0:00:12]}  Qe7+ {[%clk 0:00:06]} 78. Kg8 {[%clk 0:00:12]}  Ke6 {[%clk 0:00:07]} 79. Kh8 {[%clk 0:00:13]}  Kf6 {[%clk 0:00:08]} 80. Kg8 {[%clk 0:00:14]}  Qg7# {[%clk 0:00:08]} 0-1


[Site "https://www.chess.com"]

[Event "Titled Tuesday Blitz December 06 Late 2022"]
[White "Papp, Levente"]
[Black "Nasuta, Grzegorz"]
[WhiteFideId "751243"]
[BlackFideId "1141686"]
[WhiteElo "2380"]
[BlackElo "2441"]
[Result "0-1"]
[Round "07"]
[TimeControl "180+1"]
[Date "2022.12.07"]
[WhiteClock "0:00:07"]
[BlackClock "0:00:06"]

1. Nf3 {[%clk 0:03:00]}  Nf6 {[%clk 0:02:55]} 2. g3 {[%clk 0:03:00]}  d5 {[%clk 0:02:55]} 3. Bg2 {[%clk 0:03:00]}  c5 {[%clk 0:02:55]} 4. O-O {[%clk 0:02:59]}  e6 {[%clk 0:02:56]} 5. c4 {[%clk 0:02:46]}  d4 {[%clk 0:02:56]} 6. e3 {[%clk 0:02:46]}  Nc6 {[%clk 0:02:56]} 7. exd4 {[%clk 0:02:46]}  cxd4 {[%clk 0:02:56]} 8. d3 {[%clk 0:02:42]}  Bd6 {[%clk 0:02:56]} 9. Na3 {[%clk 0:02:42]}  a5 {[%clk 0:02:23]} 10. Nb5 {[%clk 0:02:28]}  Bb8 {[%clk 0:02:02]} 11. Re1 {[%clk 0:01:54]}  O-O {[%clk 0:02:01]} 12. b3 {[%clk 0:01:50]}  h6 {[%clk 0:01:55]} 13. Bb2 {[%clk 0:01:44]}  e5 {[%clk 0:01:54]} 14. a3 {[%clk 0:01:05]}  Re8 {[%clk 0:01:54]} 15. Nd2 {[%clk 0:00:58]}  Bf5 {[%clk 0:01:50]} 16. Ne4 {[%clk 0:00:58]}  Nxe4 {[%clk 0:01:15]} 17. Bxe4 {[%clk 0:00:52]}  Be6 {[%clk 0:01:10]} 18. Qd2 {[%clk 0:00:45]}  Qd7 {[%clk 0:01:01]} 19. b4 {[%clk 0:00:42]}  f5 {[%clk 0:00:59]} 20. Bg2 {[%clk 0:00:41]}  Bf7 {[%clk 0:00:59]} 21. c5 {[%clk 0:00:10]}  Nd8 {[%clk 0:00:27]} 22. a4 {[%clk 0:00:07]}  Nc6 {[%clk 0:00:26]} 23. bxa5 {[%clk 0:00:06]}  Nxa5 {[%clk 0:00:27]} 24. Qe2 {[%clk 0:00:04]}  Nb3 {[%clk 0:00:24]} 25. Rab1 {[%clk 0:00:02]}  Nxc5 {[%clk 0:00:22]} 26. Bxd4 {[%clk 0:00:02]}  Nxa4 {[%clk 0:00:21]} 27. Be3 {[%clk 0:00:01]}  Ra5 {[%clk 0:00:19]} 28. Qc2 {[%clk 0:00:01]}  Rc8 {[%clk 0:00:15]} 29. Qd1 {[%clk 0:00:02]}  Nc5 {[%clk 0:00:09]} 30. Nc3 {[%clk 0:00:02]}  Nxd3 {[%clk 0:00:09]} 31. Rxb7 {[%clk 0:00:02]}  Qd8 {[%clk 0:00:05]} 32. Nb5 {[%clk 0:00:02]}  e4 {[%clk 0:00:05]} 33. Re2 {[%clk 0:00:02]}  Bd5 {[%clk 0:00:04]} 34. Rd2 {[%clk 0:00:03]}  Bxb7 {[%clk 0:00:02]} 35. Nd4 {[%clk 0:00:03]}  Rd5 {[%clk 0:00:02]} 36. Ne6 {[%clk 0:00:04]}  Qe7 {[%clk 0:00:02]} 37. Bf1 {[%clk 0:00:04]}  Rd7 {[%clk 0:00:02]} 38. Qb3 {[%clk 0:00:05]}  Bd5 {[%clk 0:00:02]} 39. Qb5 {[%clk 0:00:04]}  Qxe6 {[%clk 0:00:03]} 40. Bd4 {[%clk 0:00:04]}  Bc4 {[%clk 0:00:03]} 41. Qa5 {[%clk 0:00:04]}  Rcd8 {[%clk 0:00:04]} 42. Be3 {[%clk 0:00:04]}  Rd5 {[%clk 0:00:04]} 43. Qc3 {[%clk 0:00:05]}  R5d7 {[%clk 0:00:05]} 44. Qa3 {[%clk 0:00:06]}  Bd6 {[%clk 0:00:05]} 45. Qc3 {[%clk 0:00:06]}  Bf8 {[%clk 0:00:05]} 46. Qa5 {[%clk 0:00:07]}  Bb4 {[%clk 0:00:05]} 47. Qb6 {[%clk 0:00:07]}  Qxb6 {[%clk 0:00:04]} 48. Bxb6 {[%clk 0:00:07]}  Bxd2 {[%clk 0:00:05]} 49. Bxd8 {[%clk 0:00:07]}  Rxd8 {[%clk 0:00:06]} 0-1


[Site "https://www.chess.com"]

[Event "Titled Tuesday Blitz December 06 Late 2022"]
[White "Phillips, Rene"]
[Black "Hernandez Jimenez, Alexander Andres"]
[WhiteFideId "2056275"]
[BlackFideId "3900452"]
[WhiteElo "2132"]
[BlackElo "2098"]
[Result "1-0"]
[Round "07"]
[TimeControl "180+1"]
[Date "2022.12.07"]
[WhiteClock "0:02:03"]
[BlackClock "0:01:26"]

1. Nf3 {[%clk 0:03:00]}  Nf6 {[%clk 0:02:56]} 2. d4 {[%clk 0:03:01]}  g6 {[%clk 0:02:54]} 3. Bf4 {[%clk 0:03:01]}  Bg7 {[%clk 0:02:54]} 4. e3 {[%clk 0:03:02]}  d6 {[%clk 0:02:55]} 5. h3 {[%clk 0:03:02]}  O-O {[%clk 0:02:55]} 6. Bc4 {[%clk 0:02:59]}  c5 {[%clk 0:02:54]} 7. c3 {[%clk 0:02:59]}  b6 {[%clk 0:02:54]} 8. Qe2 {[%clk 0:02:58]}  Bb7 {[%clk 0:02:54]} 9. O-O {[%clk 0:02:58]}  Nbd7 {[%clk 0:02:50]} 10. Ba6 {[%clk 0:02:57]}  Qc8 {[%clk 0:02:48]} 11. Bxb7 {[%clk 0:02:57]}  Qxb7 {[%clk 0:02:48]} 12. Nbd2 {[%clk 0:02:57]}  b5 {[%clk 0:02:46]} 13. a4 {[%clk 0:02:55]}  a6 {[%clk 0:02:46]} 14. Rfd1 {[%clk 0:02:51]}  Ne4 {[%clk 0:02:28]} 15. Nxe4 {[%clk 0:02:50]}  Qxe4 {[%clk 0:02:26]} 16. axb5 {[%clk 0:02:45]}  axb5 {[%clk 0:02:25]} 17. Qxb5 {[%clk 0:02:44]}  Rxa1 {[%clk 0:01:49]} 18. Rxa1 {[%clk 0:02:42]}  Rd8 {[%clk 0:01:48]} 19. Ra7 {[%clk 0:02:37]}  e5 {[%clk 0:01:34]} 20. Rxd7 {[%clk 0:02:31]}  Rxd7 {[%clk 0:01:33]} 21. Qxd7 {[%clk 0:02:30]}  exf4 {[%clk 0:01:32]} 22. Qxf7+ {[%clk 0:02:16]}  Kh8 {[%clk 0:01:26]} 23. Ng5 {[%clk 0:02:03]} 1-0


[Site "https://www.chess.com"]

[Event "Titled Tuesday Blitz December 06 Late 2022"]
[White "Quinones Garcia, Santiago"]
[Black "Cuevas Araya, Walter"]
[WhiteFideId "4408497"]
[BlackFideId "3405028"]
[WhiteElo "2249"]
[BlackElo "1957"]
[Result "1-0"]
[Round "07"]
[TimeControl "180+1"]
[Date "2022.12.07"]
[WhiteClock "0:01:09"]
[BlackClock "0:00:08"]

1. e4 {[%clk 0:02:56]}  c6 {[%clk 0:03:00]} 2. d4 {[%clk 0:02:56]}  d5 {[%clk 0:03:00]} 3. exd5 {[%clk 0:02:57]}  cxd5 {[%clk 0:02:59]} 4. c4 {[%clk 0:02:57]}  Nf6 {[%clk 0:02:59]} 5. Nc3 {[%clk 0:02:58]}  g6 {[%clk 0:02:58]} 6. Nf3 {[%clk 0:02:55]}  Bg7 {[%clk 0:02:58]} 7. cxd5 {[%clk 0:02:55]}  Nxd5 {[%clk 0:02:56]} 8. Bc4 {[%clk 0:02:55]}  Nxc3 {[%clk 0:02:54]} 9. bxc3 {[%clk 0:02:55]}  O-O {[%clk 0:02:55]} 10. O-O {[%clk 0:02:55]}  Bg4 {[%clk 0:02:53]} 11. h3 {[%clk 0:02:55]}  Bd7 {[%clk 0:02:50]} 12. Re1 {[%clk 0:02:53]}  e6 {[%clk 0:02:48]} 13. Ne5 {[%clk 0:02:47]}  Nc6 {[%clk 0:02:39]} 14. Ba3 {[%clk 0:02:41]}  Nxe5 {[%clk 0:02:28]} 15. dxe5 {[%clk 0:02:39]}  Re8 {[%clk 0:02:26]} 16. Bd6 {[%clk 0:02:34]}  Bc6 {[%clk 0:02:25]} 17. Qe2 {[%clk 0:02:28]}  Qg5 {[%clk 0:02:23]} 18. f3 {[%clk 0:02:26]}  Rad8 {[%clk 0:02:19]} 19. Rad1 {[%clk 0:02:15]}  Qf4 {[%clk 0:02:09]} 20. Bb5 {[%clk 0:02:10]}  Bxb5 {[%clk 0:01:57]} 21. Qxb5 {[%clk 0:02:09]}  b6 {[%clk 0:01:55]} 22. Rd4 {[%clk 0:02:03]}  Qg3 {[%clk 0:01:50]} 23. Red1 {[%clk 0:01:56]}  Bf8 {[%clk 0:01:21]} 24. Rg4 {[%clk 0:01:47]}  Rxd6 {[%clk 0:01:11]} 25. exd6 {[%clk 0:01:44]}  Qxg4 {[%clk 0:00:50]} 26. hxg4 {[%clk 0:01:42]}  Rd8 {[%clk 0:00:51]} 27. d7 {[%clk 0:01:41]}  Bc5+ {[%clk 0:00:50]} 28. Kh2 {[%clk 0:01:40]}  Kf8 {[%clk 0:00:48]} 29. Qa6 {[%clk 0:01:39]}  Ke7 {[%clk 0:00:47]} 30. Qxa7 {[%clk 0:01:40]}  h6 {[%clk 0:00:44]} 31. a4 {[%clk 0:01:39]}  Bd6+ {[%clk 0:00:40]} 32. Kg1 {[%clk 0:01:35]}  Rxd7 {[%clk 0:00:36]} 33. Qxb6 {[%clk 0:01:28]}  h5 {[%clk 0:00:18]} 34. gxh5 {[%clk 0:01:22]}  gxh5 {[%clk 0:00:18]} 35. Kf1 {[%clk 0:01:22]}  f5 {[%clk 0:00:18]} 36. a5 {[%clk 0:01:15]}  h4 {[%clk 0:00:16]} 37. a6 {[%clk 0:01:15]}  h3 {[%clk 0:00:16]} 38. gxh3 {[%clk 0:01:15]}  Bc7 {[%clk 0:00:11]} 39. Rxd7+ {[%clk 0:01:12]}  Kxd7 {[%clk 0:00:11]} 40. Qxe6+ {[%clk 0:01:09]}  Kxe6 {[%clk 0:00:10]} 41. a7 {[%clk 0:01:10]}  Be5 {[%clk 0:00:09]} 42. c4 {[%clk 0:01:08]}  Bd4 {[%clk 0:00:08]} 43. a8=Q {[%clk 0:01:08]}  Ke5 {[%clk 0:00:08]} 44. Qd5+ {[%clk 0:01:09]} 1-0


[Site "https://www.chess.com"]

[Event "Titled Tuesday Blitz December 06 Late 2022"]
[White "Rastbod, Ali"]
[Black "Jimenez Almeida, Luis David"]
[WhiteFideId "12567477"]
[BlackFideId "22242244"]
[WhiteElo "2223"]
[BlackElo "2158"]
[Result "1-0"]
[Round "07"]
[TimeControl "180+1"]
[Date "2022.12.07"]
[WhiteClock "0:00:15"]
[BlackClock "0:00:36"]

1. e4 {[%clk 0:02:58]}  Nf6 {[%clk 0:02:59]} 2. e5 {[%clk 0:02:57]}  Nd5 {[%clk 0:03:00]} 3. d4 {[%clk 0:02:55]}  d6 {[%clk 0:03:00]} 4. c4 {[%clk 0:02:56]}  Nb6 {[%clk 0:02:59]} 5. exd6 {[%clk 0:02:57]}  exd6 {[%clk 0:03:00]} 6. Nc3 {[%clk 0:02:57]}  Be7 {[%clk 0:03:01]} 7. Bd3 {[%clk 0:02:58]}  O-O {[%clk 0:03:01]} 8. Nge2 {[%clk 0:02:58]}  Bg4 {[%clk 0:03:01]} 9. O-O {[%clk 0:02:54]}  Nc6 {[%clk 0:03:00]} 10. Be3 {[%clk 0:02:53]}  Re8 {[%clk 0:02:54]} 11. b3 {[%clk 0:02:50]}  Bf6 {[%clk 0:02:51]} 12. Rc1 {[%clk 0:02:43]}  Bg5 {[%clk 0:02:47]} 13. Qd2 {[%clk 0:02:19]}  Bxe3 {[%clk 0:02:47]} 14. fxe3 {[%clk 0:02:20]}  Qg5 {[%clk 0:02:46]} 15. Nf4 {[%clk 0:02:14]}  Ne7 {[%clk 0:02:34]} 16. Ne4 {[%clk 0:02:07]}  Qh6 {[%clk 0:02:30]} 17. Qf2 {[%clk 0:01:48]}  Bf5 {[%clk 0:02:21]} 18. Ng3 {[%clk 0:01:35]}  Bxd3 {[%clk 0:02:20]} 19. Nxd3 {[%clk 0:01:36]}  f6 {[%clk 0:02:03]} 20. Rce1 {[%clk 0:01:29]}  d5 {[%clk 0:02:00]} 21. cxd5 {[%clk 0:01:10]}  Nbxd5 {[%clk 0:01:51]} 22. e4 {[%clk 0:01:11]}  Nb6 {[%clk 0:01:50]} 23. a4 {[%clk 0:01:10]}  Qg6 {[%clk 0:01:38]} 24. Nc5 {[%clk 0:01:09]}  Rab8 {[%clk 0:01:28]} 25. a5 {[%clk 0:01:09]}  Nbc8 {[%clk 0:01:26]} 26. Nd7 {[%clk 0:00:56]}  Ra8 {[%clk 0:01:25]} 27. e5 {[%clk 0:00:56]}  f5 {[%clk 0:01:07]} 28. Qf3 {[%clk 0:00:35]}  Qe6 {[%clk 0:00:42]} 29. Nc5 {[%clk 0:00:20]}  Qd5 {[%clk 0:00:42]} 30. Nxf5 {[%clk 0:00:20]}  Qxf3 {[%clk 0:00:40]} 31. Rxf3 {[%clk 0:00:20]}  b6 {[%clk 0:00:38]} 32. Na6 {[%clk 0:00:17]}  Nc6 {[%clk 0:00:36]} 33. Nxc7 {[%clk 0:00:15]} 1-0


[Site "https://www.chess.com"]

[Event "Titled Tuesday Blitz December 06 Late 2022"]
[White "Sarana, Alexey"]
[Black "Pultinevicius, Paulius"]
[WhiteFideId "24133795"]
[BlackFideId "12809390"]
[WhiteElo "2708"]
[BlackElo "2486"]
[Result "0-1"]
[Round "07"]
[TimeControl "180+1"]
[Date "2022.12.06"]
[WhiteClock "0:00:02"]
[BlackClock "0:00:04"]

1. d4 {[%clk 0:03:00]}  Nf6 {[%clk 0:02:59]} 2. c4 {[%clk 0:03:00]}  c6 {[%clk 0:02:52]} 3. Nc3 {[%clk 0:02:59]}  d5 {[%clk 0:02:52]} 4. Nf3 {[%clk 0:03:00]}  dxc4 {[%clk 0:02:52]} 5. a4 {[%clk 0:02:59]}  Bf5 {[%clk 0:02:50]} 6. Ne5 {[%clk 0:03:00]}  Nbd7 {[%clk 0:02:50]} 7. Nxc4 {[%clk 0:03:00]}  Nb6 {[%clk 0:02:50]} 8. Ne5 {[%clk 0:03:00]}  a5 {[%clk 0:02:50]} 9. e3 {[%clk 0:03:00]}  Nfd7 {[%clk 0:02:46]} 10. Nxf7 {[%clk 0:02:59]}  Kxf7 {[%clk 0:02:43]} 11. Qf3 {[%clk 0:03:00]}  Ke6 {[%clk 0:02:25]} 12. e4 {[%clk 0:02:24]}  Bg6 {[%clk 0:02:24]} 13. d5+ {[%clk 0:02:09]}  Kd6 {[%clk 0:02:16]} 14. Bf4+ {[%clk 0:01:03]}  e5 {[%clk 0:02:14]} 15. dxe6+ {[%clk 0:01:01]}  Kxe6 {[%clk 0:02:12]} 16. O-O-O {[%clk 0:00:59]}  Bb4 {[%clk 0:01:26]} 17. Qg4+ {[%clk 0:00:34]}  Kf7 {[%clk 0:01:17]} 18. Bc4+ {[%clk 0:00:34]}  Ke8 {[%clk 0:01:08]} 19. Bg5 {[%clk 0:00:24]}  Be7 {[%clk 0:01:03]} 20. Bxe7 {[%clk 0:00:10]}  Qxe7 {[%clk 0:01:03]} 21. Bb3 {[%clk 0:00:10]}  Nc5 {[%clk 0:00:54]} 22. Bc2 {[%clk 0:00:10]}  Rd8 {[%clk 0:00:54]} 23. f4 {[%clk 0:00:10]}  Nc4 {[%clk 0:00:28]} 24. Qg3 {[%clk 0:00:11]}  Ne6 {[%clk 0:00:28]} 25. f5 {[%clk 0:00:08]}  Qb4 {[%clk 0:00:29]} 26. Rxd8+ {[%clk 0:00:06]}  Nxd8 {[%clk 0:00:30]} 27. Nd1 {[%clk 0:00:04]}  Qd2+ {[%clk 0:00:28]} 28. Kb1 {[%clk 0:00:04]}  Bf7 {[%clk 0:00:21]} 29. e5 {[%clk 0:00:05]}  Bd5 {[%clk 0:00:20]} 30. Rg1 {[%clk 0:00:02]}  Qd4 {[%clk 0:00:20]} 31. Re1 {[%clk 0:00:02]}  Nd2+ {[%clk 0:00:20]} 32. Kc1 {[%clk 0:00:02]}  Ne4 {[%clk 0:00:19]} 33. Qf4 {[%clk 0:00:02]}  g5 {[%clk 0:00:14]} 34. fxg6 {[%clk 0:00:02]}  Rf8 {[%clk 0:00:15]} 35. gxh7 {[%clk 0:00:01]}  Rxf4 {[%clk 0:00:14]} 36. h8=Q+ {[%clk 0:00:02]}  Rf8 {[%clk 0:00:12]} 37. Qh5+ {[%clk 0:00:02]}  Bf7 {[%clk 0:00:09]} 38. Qh6 {[%clk 0:00:01]}  Nc5 {[%clk 0:00:09]} 39. Kb1 {[%clk 0:00:01]}  Nde6 {[%clk 0:00:09]} 40. Nc3 {[%clk 0:00:01]}  Nd3 {[%clk 0:00:09]} 41. Rd1 {[%clk 0:00:02]}  Nef4 {[%clk 0:00:09]} 42. Qg5 {[%clk 0:00:01]}  Qc4 {[%clk 0:00:07]} 43. e6 {[%clk 0:00:01]}  Bxe6 {[%clk 0:00:07]} 44. Bxd3 {[%clk 0:00:02]}  Nxd3 {[%clk 0:00:07]} 45. Qg6+ {[%clk 0:00:03]}  Ke7 {[%clk 0:00:06]} 46. Rxd3 {[%clk 0:00:03]}  Bf5 {[%clk 0:00:07]} 47. Qg5+ {[%clk 0:00:02]}  Rf6 {[%clk 0:00:07]} 48. Qg7+ {[%clk 0:00:02]}  Qf7 {[%clk 0:00:05]} 49. Qg3 {[%clk 0:00:02]}  Qg6 {[%clk 0:00:03]} 50. Qc7+ {[%clk 0:00:02]}  Kf8 {[%clk 0:00:04]} 51. Qd8+ {[%clk 0:00:02]}  Kg7 {[%clk 0:00:04]} 52. Kc2 {[%clk 0:00:02]}  Rd6 {[%clk 0:00:03]} 53. Qe7+ {[%clk 0:00:02]}  Kg8 {[%clk 0:00:04]} 0-1


[Site "https://www.chess.com"]

[Event "Titled Tuesday Blitz December 06 Late 2022"]
[White "Sargsyan, Anna M."]
[Black "Pakleza, Zbigniew"]
[WhiteFideId "13308130"]
[BlackFideId "1119290"]
[WhiteElo "2284"]
[BlackElo "2410"]
[Result "1/2-1/2"]
[Round "07"]
[TimeControl "180+1"]
[Date "2022.12.06"]
[WhiteClock "0:00:05"]
[BlackClock "0:00:01"]

1. d4 {[%clk 0:02:52]}  d6 {[%clk 0:02:59]} 2. c4 {[%clk 0:02:53]}  e5 {[%clk 0:02:59]} 3. dxe5 {[%clk 0:02:52]}  dxe5 {[%clk 0:03:00]} 4. Qxd8+ {[%clk 0:02:52]}  Kxd8 {[%clk 0:03:01]} 5. Nc3 {[%clk 0:02:52]}  Be6 {[%clk 0:03:01]} 6. b3 {[%clk 0:02:50]}  c6 {[%clk 0:03:01]} 7. Bb2 {[%clk 0:02:51]}  f6 {[%clk 0:03:01]} 8. O-O-O+ {[%clk 0:02:51]}  Kc7 {[%clk 0:03:02]} 9. e3 {[%clk 0:02:49]}  a5 {[%clk 0:03:01]} 10. Bd3 {[%clk 0:02:44]}  Nh6 {[%clk 0:02:59]} 11. Nge2 {[%clk 0:02:41]}  Na6 {[%clk 0:02:59]} 12. a3 {[%clk 0:02:34]}  Be7 {[%clk 0:02:52]} 13. h3 {[%clk 0:02:32]}  Nf7 {[%clk 0:02:51]} 14. Bc2 {[%clk 0:02:31]}  Nc5 {[%clk 0:02:33]} 15. f4 {[%clk 0:02:29]}  a4 {[%clk 0:02:10]} 16. b4 {[%clk 0:02:02]}  Nb3+ {[%clk 0:02:09]} 17. Bxb3 {[%clk 0:01:59]}  axb3 {[%clk 0:02:10]} 18. c5 {[%clk 0:01:51]}  Rhd8 {[%clk 0:01:49]} 19. Rxd8 {[%clk 0:01:47]}  Rxd8 {[%clk 0:01:49]} 20. Rd1 {[%clk 0:01:47]}  Re8 {[%clk 0:01:45]} 21. Na4 {[%clk 0:01:10]}  h5 {[%clk 0:01:16]} 22. Nb6 {[%clk 0:01:00]}  Rd8 {[%clk 0:01:14]} 23. Rxd8 {[%clk 0:00:57]}  Kxd8 {[%clk 0:01:13]} 24. Kd2 {[%clk 0:00:56]}  h4 {[%clk 0:00:53]} 25. Nc1 {[%clk 0:00:51]}  exf4 {[%clk 0:00:39]} 26. exf4 {[%clk 0:00:52]}  Nh6 {[%clk 0:00:38]} 27. Kc3 {[%clk 0:00:46]}  Nf5 {[%clk 0:00:34]} 28. Nxb3 {[%clk 0:00:43]}  Bxb3 {[%clk 0:00:18]} 29. Kxb3 {[%clk 0:00:44]}  Ne3 {[%clk 0:00:19]} 30. Bc1 {[%clk 0:00:40]}  Nxg2 {[%clk 0:00:19]} 31. Nc4 {[%clk 0:00:32]}  g5 {[%clk 0:00:10]} 32. fxg5 {[%clk 0:00:31]}  fxg5 {[%clk 0:00:11]} 33. Ne5 {[%clk 0:00:31]}  Nf4 {[%clk 0:00:07]} 34. Bxf4 {[%clk 0:00:27]}  gxf4 {[%clk 0:00:08]} 35. Kc4 {[%clk 0:00:24]}  Bf6 {[%clk 0:00:08]} 36. Nf3 {[%clk 0:00:20]}  Kd7 {[%clk 0:00:07]} 37. a4 {[%clk 0:00:21]}  Ke6 {[%clk 0:00:06]} 38. b5 {[%clk 0:00:21]}  Bd8 {[%clk 0:00:04]} 39. b6 {[%clk 0:00:17]}  Kf5 {[%clk 0:00:03]} 40. Nd2 {[%clk 0:00:17]}  Bf6 {[%clk 0:00:03]} 41. a5 {[%clk 0:00:16]}  Be5 {[%clk 0:00:03]} 42. Nf3 {[%clk 0:00:09]}  Bb8 {[%clk 0:00:03]} 43. Nd2 {[%clk 0:00:05]}  Ke5 {[%clk 0:00:01]} 44. Kb4 {[%clk 0:00:02]}  Kd5 {[%clk 0:00:01]} 45. Nf3 {[%clk 0:00:02]}  Ke4 {[%clk 0:00:01]} 46. Nxh4 {[%clk 0:00:02]}  f3 {[%clk 0:00:02]} 47. Nxf3 {[%clk 0:00:02]}  Kxf3 {[%clk 0:00:03]} 48. h4 {[%clk 0:00:02]}  Kg4 {[%clk 0:00:04]} 49. h5 {[%clk 0:00:02]}  Kxh5 {[%clk 0:00:05]} 50. a6 {[%clk 0:00:02]}  bxa6 {[%clk 0:00:05]} 51. Ka5 {[%clk 0:00:02]}  Kg5 {[%clk 0:00:03]} 52. Kxa6 {[%clk 0:00:03]}  Kh5 {[%clk 0:00:03]} 53. Kb7 {[%clk 0:00:04]}  Bf4 {[%clk 0:00:02]} 54. Kc8 {[%clk 0:00:04]}  Kg6 {[%clk 0:00:03]} 55. b7 {[%clk 0:00:04]}  Kf5 {[%clk 0:00:03]} 56. Kd7 {[%clk 0:00:04]}  Ke4 {[%clk 0:00:03]} 57. Kxc6 {[%clk 0:00:04]}  Kd4 {[%clk 0:00:04]} 58. Kb6 {[%clk 0:00:04]}  Kd5 {[%clk 0:00:04]} 59. c6 {[%clk 0:00:04]}  Be3+ {[%clk 0:00:03]} 60. Kb5 {[%clk 0:00:04]}  Bf4 {[%clk 0:00:02]} 61. Kb6 {[%clk 0:00:05]}  Be3+ {[%clk 0:00:02]} 62. Ka6 {[%clk 0:00:05]}  Bf4 {[%clk 0:00:01]} 63. Kb6 {[%clk 0:00:05]} 1/2-1/2


[Site "https://www.chess.com"]